[Event "*** Titled Tuesday Blitz"]
[Site "Chess.com"]
[Date "2021.02.02"]
[Round "10"]
[White "Forantes"]
[Black "Chimpinha"]
[Result "1/2-1/2"]
[WhiteElo "2296"]
[BlackElo "2393"]
[TimeControl "180+1"]
[EndTime "11:58:25 PST"]
[Termination "Game drawn by repetition"]

1. d4 {[%clk 0:02:48.4]} 1... Nf6 {[%clk 0:02:59]} 2. Nf3 {[%clk 0:02:47.5]}
2... g6 {[%clk 0:02:59.5]} 3. g3 {[%clk 0:02:47.4]} 3... Bg7 {[%clk 0:03:00.1]}
4. Bg2 {[%clk 0:02:47.5]} 4... O-O {[%clk 0:03:00.9]} 5. O-O {[%clk 0:02:47.8]}
5... d6 {[%clk 0:03:01.5]} 6. c4 {[%clk 0:02:47.7]} 6... Nbd7 {[%clk 0:03:02]}
7. Nc3 {[%clk 0:02:47.3]} 7... e5 {[%clk 0:03:02.6]} 8. e4 {[%clk 0:02:36.1]}
8... exd4 {[%clk 0:03:02.7]} 9. Nxd4 {[%clk 0:02:35.6]} 9... Re8 {[%clk
0:03:03.4]} 10. Nc2 {[%clk 0:02:20.9]} 10... Nc5 {[%clk 0:03:02.2]} 11. Re1
{[%clk 0:02:20.5]} 11... Ng4 {[%clk 0:02:49.1]} 12. f4 {[%clk 0:02:00]} 12... f5
{[%clk 0:02:37.7]} 13. h3 {[%clk 0:01:52.1]} 13... Nf6 {[%clk 0:02:23.7]} 14. e5
{[%clk 0:01:50.6]} 14... Nh5 {[%clk 0:02:12.7]} 15. Kh2 {[%clk 0:01:07.2]} 15...
dxe5 {[%clk 0:02:04.7]} 16. Bd5+ {[%clk 0:01:04.3]} 16... Be6 {[%clk 0:01:58.7]}
17. Be3 {[%clk 0:00:31.3]} 17... Ne4 {[%clk 0:01:10.2]} 18. Bxe4 {[%clk
0:00:10.9]} 18... fxe4 {[%clk 0:01:06.3]} 19. Nxe4 {[%clk 0:00:09.3]} 19... exf4
{[%clk 0:01:06]} 20. Bxf4 {[%clk 0:00:08.7]} 20... Nxf4 {[%clk 0:01:05.1]} 21.
gxf4 {[%clk 0:00:08.3]} 21... Bxc4 {[%clk 0:01:01.8]} 22. Qf3 {[%clk 0:00:03]}
22... Qd3 {[%clk 0:00:57.4]} 23. Qg2 {[%clk 0:00:02.5]} 23... Rad8 {[%clk
0:00:31.1]} 24. Rad1 {[%clk 0:00:03]} 24... Qxd1 {[%clk 0:00:28.8]} 25. Rxd1
{[%clk 0:00:03.9]} 25... Rxd1 {[%clk 0:00:28.6]} 26. Ne3 {[%clk 0:00:03.9]}
26... Rd4 {[%clk 0:00:23.7]} 27. Nxc4 {[%clk 0:00:02.7]} 27... Rdxe4 {[%clk
0:00:23]} 28. Ne5 {[%clk 0:00:02.9]} 28... Rd4 {[%clk 0:00:15.9]} 29. Qc2 {[%clk
0:00:02.4]} 29... Bxe5 {[%clk 0:00:14.5]} 30. fxe5 {[%clk 0:00:03.3]} 30... Rxe5
{[%clk 0:00:12.9]} 31. Qxc7 {[%clk 0:00:03.9]} 31... Rd2+ {[%clk 0:00:12.6]} 32.
Kg3 {[%clk 0:00:04.5]} 32... Rde2 {[%clk 0:00:11]} 33. Qb8+ {[%clk 0:00:03.7]}
33... Re8 {[%clk 0:00:10.8]} 34. Qxb7 {[%clk 0:00:04.3]} 34... R2e7 {[%clk
0:00:11.5]} 35. Qd5+ {[%clk 0:00:04.5]} 35... Kg7 {[%clk 0:00:11.5]} 36. Qd4+
{[%clk 0:00:05.1]} 36... Kf8 {[%clk 0:00:09.7]} 37. Qf6+ {[%clk 0:00:04.2]}
37... Rf7 {[%clk 0:00:09.1]} 38. Qh8+ {[%clk 0:00:04.1]} 38... Ke7 {[%clk
0:00:09.8]} 39. Qe5+ {[%clk 0:00:05]} 39... Kd7 {[%clk 0:00:09.8]} 40. Qd4+
{[%clk 0:00:05.3]} 40... Ke7 {[%clk 0:00:10]} 41. Qe5+ {[%clk 0:00:05.6]} 41...
Kd8 {[%clk 0:00:10.7]} 42. Qd5+ {[%clk 0:00:05.7]} 42... Rd7 {[%clk 0:00:10.1]}
43. Qa8+ {[%clk 0:00:05.8]} 43... Ke7 {[%clk 0:00:10.5]} 44. Qe4+ {[%clk
0:00:06.4]} 44... Kf7 {[%clk 0:00:10.7]} 45. Qc4+ {[%clk 0:00:06.6]} 45... Kg7
{[%clk 0:00:09.4]} 46. Qc3+ {[%clk 0:00:06.6]} 46... Kg8 {[%clk 0:00:09.7]} 47.
Qc4+ {[%clk 0:00:06.8]} 47... Rf7 {[%clk 0:00:10.4]} 48. h4 {[%clk 0:00:06.8]}
48... Rf8 {[%clk 0:00:10.9]} 49. h5 {[%clk 0:00:06.7]} 49... gxh5 {[%clk
0:00:10.8]} 50. Kh4 {[%clk 0:00:07.2]} 50... Kg7 {[%clk 0:00:09.9]} 51. Qd4+
{[%clk 0:00:06.8]} 51... Kg6 {[%clk 0:00:10.2]} 52. Qg1+ {[%clk 0:00:06.1]}
52... Kf6 {[%clk 0:00:09]} 53. Qg5+ {[%clk 0:00:06.7]} 53... Ke6 {[%clk
0:00:09.7]} 54. Qxh5 {[%clk 0:00:06.5]} 54... Rf4+ {[%clk 0:00:09.6]} 55. Kg3
{[%clk 0:00:07.1]} 55... Rf3+ {[%clk 0:00:09.2]} 56. Kg2 {[%clk 0:00:07.3]}
56... Rf2+ {[%clk 0:00:09.3]} 57. Kg3 {[%clk 0:00:07.9]} 57... R8f3+ {[%clk
0:00:08.8]} 58. Kg4 {[%clk 0:00:08.5]} 58... Rf4+ {[%clk 0:00:09.1]} 59. Kg3
{[%clk 0:00:08.9]} 59... Rf7 {[%clk 0:00:09.4]} 60. Qg4+ {[%clk 0:00:08.3]}
60... R2f5 {[%clk 0:00:08.6]} 61. Qc4+ {[%clk 0:00:08.3]} 61... Kf6 {[%clk
0:00:08.3]} 62. Qc6+ {[%clk 0:00:08]} 62... Kg7 {[%clk 0:00:08.5]} 63. Qc3+
{[%clk 0:00:07.6]} 63... R7f6 {[%clk 0:00:08.9]} 64. Qc7+ {[%clk 0:00:08]} 64...
Kg6 {[%clk 0:00:09.5]} 65. b4 {[%clk 0:00:06.1]} 65... Rg5+ {[%clk 0:00:10]} 66.
Kh4 {[%clk 0:00:05.4]} 66... Rgf5 {[%clk 0:00:09.7]} 67. Qc2 {[%clk 0:00:05.7]}
67... h6 {[%clk 0:00:09.3]} 68. Qg2+ {[%clk 0:00:05.3]} 68... Rg5 {[%clk
0:00:08.9]} 69. Qb7 {[%clk 0:00:06.2]} 69... Rf4+ {[%clk 0:00:09.3]} 70. Kh3
{[%clk 0:00:06.7]} 70... Rfg4 {[%clk 0:00:08.4]} 71. Qc6+ {[%clk 0:00:05.7]}
71... Kf5 {[%clk 0:00:08.4]} 72. Qd7+ {[%clk 0:00:05.6]} 72... Kf4 {[%clk
0:00:08.6]} 73. Qd6+ {[%clk 0:00:04.6]} 73... Kf3 {[%clk 0:00:08.8]} 74. Qd3+
{[%clk 0:00:04.6]} 74... Kf4 {[%clk 0:00:08.8]} 75. Qd2+ {[%clk 0:00:05]} 75...
Ke5 {[%clk 0:00:08.6]} 76. Qe3+ {[%clk 0:00:05.1]} 76... Re4 {[%clk 0:00:07.8]}
77. Qc5+ {[%clk 0:00:05.6]} 77... Kf4 {[%clk 0:00:08.5]} 78. Qf2+ {[%clk
0:00:05.7]} 78... Ke5 {[%clk 0:00:07.4]} 79. Qc5+ {[%clk 0:00:06.6]} 79... Kf6
{[%clk 0:00:07.7]} 80. Qf8+ {[%clk 0:00:06.4]} 80... Ke5 {[%clk 0:00:07.5]} 81.
Qc5+ {[%clk 0:00:06.4]} 1/2-1/2

[Event "*** Titled Tuesday Blitz"]
[Site "Chess.com"]
[Date "2021.02.02"]
[Round "10"]
[White "frederiksvane"]
[Black "Machidon"]
[Result "1-0"]
[WhiteElo "2753"]
[BlackElo "2560"]
[TimeControl "180+1"]
[EndTime "11:58:29 PST"]
[Termination "frederiksvane won by resignation"]

1. e4 {[%clk 0:03:00.9]} 1... c6 {[%clk 0:02:57.9]} 2. d4 {[%clk 0:03:00.2]}
2... d5 {[%clk 0:02:58.4]} 3. exd5 {[%clk 0:03:01.1]} 3... cxd5 {[%clk
0:02:59.1]} 4. Bd3 {[%clk 0:03:01.3]} 4... Nc6 {[%clk 0:02:59.6]} 5. c3 {[%clk
0:03:01.7]} 5... Qc7 {[%clk 0:02:59.3]} 6. Ne2 {[%clk 0:03:01.1]} 6... Bg4
{[%clk 0:02:54]} 7. O-O {[%clk 0:03:00.7]} 7... e6 {[%clk 0:02:53.5]} 8. Qe1
{[%clk 0:03:01.2]} 8... Bxe2 {[%clk 0:02:37.7]} 9. Qxe2 {[%clk 0:03:02.1]} 9...
Bd6 {[%clk 0:02:37.3]} 10. f4 {[%clk 0:03:02.5]} 10... Nf6 {[%clk 0:02:22]} 11.
g3 {[%clk 0:03:01.4]} 11... h5 {[%clk 0:01:50.2]} 12. Nd2 {[%clk 0:02:56.7]}
12... h4 {[%clk 0:01:49.3]} 13. Nf3 {[%clk 0:02:52.5]} 13... hxg3 {[%clk
0:01:48.9]} 14. hxg3 {[%clk 0:02:53.4]} 14... O-O-O {[%clk 0:01:46.4]} 15. Kg2
{[%clk 0:02:50.4]} 15... Ng4 {[%clk 0:01:39.2]} 16. Bd2 {[%clk 0:02:47.4]} 16...
Rh6 {[%clk 0:01:23.5]} 17. f5 {[%clk 0:02:21.3]} 17... Rh5 {[%clk 0:01:20.4]}
18. fxe6 {[%clk 0:02:18.1]} 18... Re8 {[%clk 0:01:19]} 19. Rh1 {[%clk
0:02:13.6]} 19... Rxh1 {[%clk 0:00:54.3]} 20. Rxh1 {[%clk 0:02:12.5]} 20... fxe6
{[%clk 0:00:54]} 21. Ng5 {[%clk 0:01:56.9]} 21... Nf6 {[%clk 0:00:51.4]} 22.
Nxe6 {[%clk 0:01:56]} 22... Qf7 {[%clk 0:00:46.4]} 23. Bf5 {[%clk 0:01:51.4]}
23... Kb8 {[%clk 0:00:44.7]} 24. Re1 {[%clk 0:00:50.3]} 24... g6 {[%clk
0:00:22.6]} 25. Bh3 {[%clk 0:00:47.5]} 25... Ne4 {[%clk 0:00:18.5]} 26. Ng5
{[%clk 0:00:43.7]} 26... Qc7 {[%clk 0:00:12.4]} 27. Nxe4 {[%clk 0:00:42.5]}
27... Rxe4 {[%clk 0:00:12.9]} 28. Qf3 {[%clk 0:00:41.4]} 28... Rxe1 {[%clk
0:00:12.5]} 29. Bxe1 {[%clk 0:00:42.3]} 29... Qa5 {[%clk 0:00:06.6]} 30. a3
{[%clk 0:00:36.7]} 30... Qb5 {[%clk 0:00:06.3]} 31. b4 {[%clk 0:00:33.7]} 31...
Ne7 {[%clk 0:00:05.5]} 32. Be6 {[%clk 0:00:29.4]} 32... Qc4 {[%clk 0:00:05.4]}
33. Bf2 {[%clk 0:00:16.4]} 33... Kc7 {[%clk 0:00:05.4]} 34. a4 {[%clk
0:00:15.6]} 34... Qa2 {[%clk 0:00:04.6]} 35. a5 {[%clk 0:00:15.1]} 35... a6
{[%clk 0:00:05.1]} 36. Qd3 {[%clk 0:00:12.1]} 36... Qb3 {[%clk 0:00:04.2]} 37.
Qf3 {[%clk 0:00:07.9]} 37... Qc4 {[%clk 0:00:04.1]} 38. Qe3 {[%clk 0:00:04.7]}
38... Qb3 {[%clk 0:00:04.6]} 39. Kf3 {[%clk 0:00:05]} 39... Qc4 {[%clk
0:00:04.5]} 40. Be1 {[%clk 0:00:04.2]} 40... Qb3 {[%clk 0:00:04.7]} 41. Qe2
{[%clk 0:00:03.2]} 41... Bxb4 {[%clk 0:00:03.7]} 42. Kg4 {[%clk 0:00:03.3]}
42... Bd6 {[%clk 0:00:03.7]} 43. Qd3 {[%clk 0:00:02.4]} 43... Nc6 {[%clk
0:00:03.2]} 44. Bd2 {[%clk 0:00:01.7]} 44... Ne7 {[%clk 0:00:04]} 45. Qf3 {[%clk
0:00:01.9]} 45... Qa3 {[%clk 0:00:04.3]} 46. Bg5 {[%clk 0:00:01.7]} 46... Qxa5
{[%clk 0:00:04.2]} 47. Bxe7 {[%clk 0:00:02.1]} 47... Bxe7 {[%clk 0:00:05.1]} 48.
Bxd5 {[%clk 0:00:02.4]} 48... Qa3 {[%clk 0:00:04.1]} 49. Bxb7 {[%clk 0:00:02.2]}
49... Qd6 {[%clk 0:00:04.5]} 50. Bd5 {[%clk 0:00:01.7]} 50... Qd7+ {[%clk
0:00:04.2]} 51. Kf4 {[%clk 0:00:02.2]} 51... Qd6+ {[%clk 0:00:02.9]} 52. Ke3
{[%clk 0:00:02.1]} 52... a5 {[%clk 0:00:03.8]} 53. Kd3 {[%clk 0:00:02.5]} 53...
Qa6+ {[%clk 0:00:03.9]} 54. Bc4 {[%clk 0:00:02.7]} 54... Qb6 {[%clk 0:00:04.4]}
55. Qd5 {[%clk 0:00:03]} 55... a4 {[%clk 0:00:03.6]} 56. Qe5+ {[%clk 0:00:03.4]}
56... Bd6 {[%clk 0:00:03.4]} 57. Qg7+ {[%clk 0:00:03.6]} 57... Kb8 {[%clk
0:00:03.8]} 58. Qg8+ {[%clk 0:00:02.7]} 58... Ka7 {[%clk 0:00:03.2]} 59. Qg7+
{[%clk 0:00:03]} 59... Qb7 {[%clk 0:00:03.4]} 60. Qxb7+ {[%clk 0:00:03]} 60...
Kxb7 {[%clk 0:00:03.3]} 61. g4 {[%clk 0:00:03.6]} 61... a3 {[%clk 0:00:03.8]}
62. Ba2 {[%clk 0:00:04]} 62... Kb6 {[%clk 0:00:04.7]} 63. c4 {[%clk 0:00:04.6]}
63... Bb4 {[%clk 0:00:04.9]} 64. c5+ {[%clk 0:00:03.4]} 64... Kb5 {[%clk
0:00:05]} 65. Kc2 {[%clk 0:00:02.4]} 65... Be1 {[%clk 0:00:03.2]} 66. Kb3 {[%clk
0:00:01.3]} 66... Bf2 {[%clk 0:00:03.6]} 67. Kc3 {[%clk 0:00:01.9]} 67... Bg1
{[%clk 0:00:03.2]} 68. Bc4+ {[%clk 0:00:01.7]} 68... Kc6 {[%clk 0:00:02.7]} 69.
Bb3 {[%clk 0:00:01.5]} 69... g5 {[%clk 0:00:03.6]} 70. Kc4 {[%clk 0:00:01.8]}
70... Bf2 {[%clk 0:00:04.5]} 71. d5+ {[%clk 0:00:02.3]} 71... Kc7 {[%clk
0:00:05.4]} 72. Ba2 {[%clk 0:00:01.6]} 72... Bg1 {[%clk 0:00:05.3]} 73. Kb5
{[%clk 0:00:02]} 73... Bh2 {[%clk 0:00:04.8]} 74. d6+ {[%clk 0:00:02.1]} 74...
Kb7 {[%clk 0:00:04.6]} 75. c6+ {[%clk 0:00:01.9]} 75... Kc8 {[%clk 0:00:05.1]}
76. Be6+ {[%clk 0:00:01.6]} 76... Kb8 {[%clk 0:00:03.8]} 77. c7+ {[%clk
0:00:02.5]} 77... Kb7 {[%clk 0:00:04.3]} 78. c8=Q+ {[%clk 0:00:03.4]} 1-0

[Event "*** Titled Tuesday Blitz"]
[Site "Chess.com"]
[Date "2021.02.02"]
[Round "10"]
[White "Djager97"]
[Black "K_A_S_T_O_R"]
[Result "1-0"]
[WhiteElo "2602"]
[BlackElo "2723"]
[TimeControl "180+1"]
[EndTime "11:58:31 PST"]
[Termination "Djager97 won by resignation"]

1. e4 {[%clk 0:03:00.9]} 1... c5 {[%clk 0:02:59.1]} 2. Nf3 {[%clk 0:03:01.3]}
2... d6 {[%clk 0:02:59.4]} 3. d4 {[%clk 0:03:01.7]} 3... cxd4 {[%clk 0:03:00]}
4. Nxd4 {[%clk 0:03:02.6]} 4... Nf6 {[%clk 0:03:00.4]} 5. Nc3 {[%clk 0:03:03.1]}
5... a6 {[%clk 0:03:00.7]} 6. h3 {[%clk 0:03:03.8]} 6... e6 {[%clk 0:03:00.4]}
7. g4 {[%clk 0:03:04.3]} 7... h6 {[%clk 0:03:00.9]} 8. Be3 {[%clk 0:03:02.4]}
8... b5 {[%clk 0:02:58.4]} 9. Bg2 {[%clk 0:02:20.1]} 9... Bb7 {[%clk 0:02:57.3]}
10. a3 {[%clk 0:02:16.5]} 10... g5 {[%clk 0:02:53.7]} 11. Qe2 {[%clk 0:02:04.7]}
11... Nbd7 {[%clk 0:02:53.2]} 12. O-O-O {[%clk 0:02:02.2]} 12... Rc8 {[%clk
0:02:52.6]} 13. h4 {[%clk 0:01:57.9]} 13... Rxc3 {[%clk 0:02:46.6]} 14. bxc3
{[%clk 0:01:58.8]} 14... Rg8 {[%clk 0:02:38.2]} 15. hxg5 {[%clk 0:01:57.2]}
15... hxg5 {[%clk 0:02:39.1]} 16. Nb3 {[%clk 0:01:40.3]} 16... Qc7 {[%clk
0:02:31.8]} 17. Qd2 {[%clk 0:01:28.5]} 17... Nxe4 {[%clk 0:02:18.1]} 18. Bxe4
{[%clk 0:01:19.9]} 18... Bxe4 {[%clk 0:02:17.3]} 19. Rh3 {[%clk 0:01:07.9]}
19... d5 {[%clk 0:02:14.4]} 20. Bxg5 {[%clk 0:00:40.3]} 20... Nb6 {[%clk
0:01:50.9]} 21. Na5 {[%clk 0:00:36.3]} 21... Bxa3+ {[%clk 0:01:46]} 22. Kb1
{[%clk 0:00:36.1]} 22... Bd6 {[%clk 0:01:45.3]} 23. Bf6 {[%clk 0:00:28.3]} 23...
Nc4 {[%clk 0:01:36.5]} 24. Nxc4 {[%clk 0:00:24.8]} 24... bxc4 {[%clk 0:01:36.9]}
25. Qd4 {[%clk 0:00:23.8]} 25... e5 {[%clk 0:01:33.1]} 26. Qe3 {[%clk
0:00:20.1]} 26... Bc5 {[%clk 0:01:27.9]} 27. Qe2 {[%clk 0:00:17.8]} 27... Ba3
{[%clk 0:01:17.7]} 28. Ka2 {[%clk 0:00:17.7]} 28... Qa5 {[%clk 0:01:17.1]} 29.
Rxd5 {[%clk 0:00:15.7]} 29... Bxd5 {[%clk 0:01:05.7]} 30. Qxe5+ {[%clk
0:00:15.5]} 30... Kd7 {[%clk 0:01:05.4]} 31. Qf5+ {[%clk 0:00:10.3]} 31... Kc6
{[%clk 0:01:05.4]} 32. Rh6 {[%clk 0:00:07.6]} 32... Rb8 {[%clk 0:00:55.9]} 33.
Bd8+ {[%clk 0:00:05]} 33... Bd6+ {[%clk 0:00:44.6]} 34. Bxa5 {[%clk 0:00:03.7]}
34... Rb5 {[%clk 0:00:45]} 35. Rxd6+ {[%clk 0:00:02]} 35... Kxd6 {[%clk
0:00:44.6]} 36. Bb4+ {[%clk 0:00:02.9]} 36... Kc6 {[%clk 0:00:45]} 37. Qc8+
{[%clk 0:00:03.2]} 37... Kb6 {[%clk 0:00:45.2]} 38. Qb8+ {[%clk 0:00:03.4]}
38... Kc6 {[%clk 0:00:45.4]} 39. Qd6+ {[%clk 0:00:03.6]} 39... Kb7 {[%clk
0:00:45.2]} 40. Qe7+ {[%clk 0:00:03.9]} 40... Kb6 {[%clk 0:00:45.4]} 41. Qd6+
{[%clk 0:00:04.2]} 41... Kb7 {[%clk 0:00:45.6]} 42. f4 {[%clk 0:00:04.8]} 42...
a5 {[%clk 0:00:45.4]} 43. Bc5 {[%clk 0:00:05.2]} 43... Bc6 {[%clk 0:00:45.2]}
44. Qe7+ {[%clk 0:00:05.1]} 44... Kc8 {[%clk 0:00:45]} 45. Bd6 {[%clk
0:00:05.1]} 45... Bd7 {[%clk 0:00:45.2]} 46. Qxf7 {[%clk 0:00:04.7]} 46... Rb6
{[%clk 0:00:43.3]} 47. Qf8+ {[%clk 0:00:05]} 47... Kb7 {[%clk 0:00:43]} 48. Bc5
{[%clk 0:00:05.5]} 48... Rc6 {[%clk 0:00:42.7]} 49. Bd4 {[%clk 0:00:05.9]} 49...
Re6 {[%clk 0:00:41.6]} 50. f5 {[%clk 0:00:06.3]} 50... Re2 {[%clk 0:00:41.5]}
51. Kb2 {[%clk 0:00:07]} 51... Ba4 {[%clk 0:00:40.3]} 52. Qd6 {[%clk 0:00:06.8]}
52... Rxc2+ {[%clk 0:00:39.3]} 53. Ka3 {[%clk 0:00:06.9]} 53... Bb3 {[%clk
0:00:38.6]} 54. Qb6+ {[%clk 0:00:06.7]} 54... Kc8 {[%clk 0:00:38.7]} 55. Qxa5
{[%clk 0:00:05.6]} 55... Ra2+ {[%clk 0:00:37.9]} 56. Kb4 {[%clk 0:00:06.3]}
56... Rxa5 {[%clk 0:00:38.8]} 57. Kxa5 {[%clk 0:00:07.2]} 57... Kd7 {[%clk
0:00:38.8]} 58. g5 {[%clk 0:00:07.6]} 58... Bc2 {[%clk 0:00:38.6]} 59. f6 {[%clk
0:00:06.2]} 59... Bg6 {[%clk 0:00:39.1]} 60. Kb6 {[%clk 0:00:06.1]} 60... Bf7
{[%clk 0:00:39.4]} 61. Kc5 {[%clk 0:00:06.3]} 61... Kc7 {[%clk 0:00:37.7]} 62.
g6 {[%clk 0:00:06]} 62... Bxg6 {[%clk 0:00:37.6]} 63. Kxc4 {[%clk 0:00:06.7]}
63... Kc6 {[%clk 0:00:37.3]} 64. Be5 {[%clk 0:00:06.6]} 64... Bf7+ {[%clk
0:00:37.7]} 65. Kd4 {[%clk 0:00:06.9]} 65... Kb5 {[%clk 0:00:37.4]} 66. Ke4
{[%clk 0:00:06]} 66... Kc6 {[%clk 0:00:37.6]} 67. Kf5 {[%clk 0:00:05.8]} 67...
Kd5 {[%clk 0:00:37.4]} 68. Bd4 {[%clk 0:00:05.7]} 68... Kd6 {[%clk 0:00:36.8]}
69. Kg5 {[%clk 0:00:05.9]} 69... Kd7 {[%clk 0:00:36.2]} 70. Kh6 {[%clk
0:00:05.9]} 70... Ke8 {[%clk 0:00:36.2]} 71. Kg7 {[%clk 0:00:06.3]} 71... Bc4
{[%clk 0:00:36]} 72. Kg6 {[%clk 0:00:06.5]} 72... Bd5 {[%clk 0:00:35.9]} 73. Kf5
{[%clk 0:00:07]} 73... Kd7 {[%clk 0:00:35.9]} 74. Ke5 {[%clk 0:00:07.9]} 74...
Bf7 {[%clk 0:00:36.2]} 75. Be3 {[%clk 0:00:07.7]} 75... Kc6 {[%clk 0:00:35.9]}
76. Bd2 {[%clk 0:00:07.9]} 76... Kd7 {[%clk 0:00:35.7]} 77. Kd4 {[%clk
0:00:08.2]} 77... Kc6 {[%clk 0:00:35.9]} 78. c4 {[%clk 0:00:08.5]} 78... Be6
{[%clk 0:00:35.1]} 79. c5 {[%clk 0:00:09]} 79... Bf7 {[%clk 0:00:35.4]} 80. Bf4
{[%clk 0:00:09.2]} 80... Kd7 {[%clk 0:00:35.2]} 81. Be5 {[%clk 0:00:08.6]} 81...
Kc6 {[%clk 0:00:34.5]} 82. Bd6 {[%clk 0:00:08.4]} 82... Kd7 {[%clk 0:00:33.9]}
83. Ke5 {[%clk 0:00:09]} 83... Bc4 {[%clk 0:00:31]} 84. Kf5 {[%clk 0:00:09.4]}
84... Bd5 {[%clk 0:00:29.4]} 85. Kg6 {[%clk 0:00:09.7]} 85... Ke8 {[%clk
0:00:26.9]} 86. c6 {[%clk 0:00:09]} 86... Bf7+ {[%clk 0:00:22.5]} 87. Kg7 {[%clk
0:00:09.2]} 87... Bd5 {[%clk 0:00:19.4]} 88. c7 {[%clk 0:00:09.5]} 88... Kd7
{[%clk 0:00:18.7]} 89. f7 {[%clk 0:00:09.9]} 89... Bxf7 {[%clk 0:00:18.2]} 90.
Kxf7 {[%clk 0:00:10.8]} 90... Kc8 {[%clk 0:00:18.8]} 91. Ke7 {[%clk 0:00:10.8]}
1-0

[Event "*** Titled Tuesday Blitz"]
[Site "Chess.com"]
[Date "2021.02.02"]
[Round "10"]
[White "Sharpchess22"]
[Black "LisikValera"]
[Result "1-0"]
[WhiteElo "2681"]
[BlackElo "2479"]
[TimeControl "180+1"]
[EndTime "11:58:43 PST"]
[Termination "Sharpchess22 won on time"]

1. d4 {[%clk 0:03:00.9]} 1... d5 {[%clk 0:02:59.5]} 2. Nf3 {[%clk 0:03:00.4]}
2... Nf6 {[%clk 0:02:59]} 3. Bf4 {[%clk 0:02:59.1]} 3... Bf5 {[%clk 0:02:56.5]}
4. c4 {[%clk 0:02:56.6]} 4... e6 {[%clk 0:02:56]} 5. cxd5 {[%clk 0:02:48.9]}
5... exd5 {[%clk 0:02:54.8]} 6. Qb3 {[%clk 0:02:47.4]} 6... Nc6 {[%clk 0:02:48]}
7. a3 {[%clk 0:02:46.6]} 7... Na5 {[%clk 0:02:42]} 8. Qa4+ {[%clk 0:02:45.4]}
8... c6 {[%clk 0:02:42.1]} 9. Nc3 {[%clk 0:02:41.7]} 9... Nc4 {[%clk 0:02:37.9]}
10. Qb3 {[%clk 0:02:22.5]} 10... Qb6 {[%clk 0:02:32.3]} 11. Qxb6 {[%clk
0:02:19]} 11... axb6 {[%clk 0:02:33.2]} 12. O-O-O {[%clk 0:02:19]} 12... b5
{[%clk 0:02:24.6]} 13. Nh4 {[%clk 0:02:16.5]} 13... Be4 {[%clk 0:02:06.4]} 14.
f3 {[%clk 0:02:14.7]} 14... b4 {[%clk 0:02:06.7]} 15. Nxe4 {[%clk 0:02:06]}
15... dxe4 {[%clk 0:02:06.4]} 16. e3 {[%clk 0:02:06]} 16... b5 {[%clk
0:02:03.6]} 17. axb4 {[%clk 0:02:02.4]} 17... Bxb4 {[%clk 0:01:54.8]} 18. Bxc4
{[%clk 0:01:58]} 18... bxc4 {[%clk 0:01:54.3]} 19. Nf5 {[%clk 0:01:53.7]} 19...
O-O {[%clk 0:01:52.3]} 20. Be5 {[%clk 0:01:53.1]} 20... c3 {[%clk 0:01:46.7]}
21. bxc3 {[%clk 0:01:51.6]} 21... Bxc3 {[%clk 0:01:46.9]} 22. Kc2 {[%clk
0:01:51.7]} 22... Ra3 {[%clk 0:01:45.4]} 23. Bxf6 {[%clk 0:01:49.1]} 23... gxf6
{[%clk 0:01:46.3]} 24. fxe4 {[%clk 0:01:48]} 24... c5 {[%clk 0:01:41.3]} 25.
dxc5 {[%clk 0:01:29.7]} 25... Be5 {[%clk 0:01:38.3]} 26. Rd3 {[%clk 0:01:22.5]}
26... Ra2+ {[%clk 0:01:37.3]} 27. Kb3 {[%clk 0:01:22.8]} 27... Rxg2 {[%clk
0:01:35.5]} 28. Rhd1 {[%clk 0:01:19.2]} 28... Rb8+ {[%clk 0:01:30]} 29. Kc4
{[%clk 0:01:18]} 29... Rc2+ {[%clk 0:01:28.2]} 30. Kd5 {[%clk 0:01:18.1]} 30...
Rb5 {[%clk 0:01:20.2]} 31. Kc6 {[%clk 0:00:59]} 31... Rcxc5+ {[%clk 0:01:16.7]}
32. Kd7 {[%clk 0:00:58.1]} 32... Kf8 {[%clk 0:00:42.4]} 33. Nd6 {[%clk
0:00:49.1]} 33... Rb6 {[%clk 0:00:41.8]} 34. Ra3 {[%clk 0:00:41.8]} 34... Rbc6
{[%clk 0:00:22.1]} 35. Ra8+ {[%clk 0:00:39.6]} 35... Kg7 {[%clk 0:00:22.4]} 36.
Rg1+ {[%clk 0:00:33.7]} 36... Kh6 {[%clk 0:00:22.2]} 37. Nxf7+ {[%clk
0:00:33.1]} 37... Kh5 {[%clk 0:00:22.5]} 38. Nxe5 {[%clk 0:00:31.4]} 38... fxe5
{[%clk 0:00:22.9]} 39. Rag8 {[%clk 0:00:23.5]} 39... Rg6 {[%clk 0:00:22.3]} 40.
R8xg6 {[%clk 0:00:20.4]} 40... hxg6 {[%clk 0:00:23.2]} 41. Ke6 {[%clk
0:00:20.8]} 41... Rc3 {[%clk 0:00:23.4]} 42. Kxe5 {[%clk 0:00:20.9]} 42... Rxe3
{[%clk 0:00:23.9]} 43. Rg3 {[%clk 0:00:20.5]} 43... Re2 {[%clk 0:00:23.1]} 44.
h3 {[%clk 0:00:20.8]} 44... g5 {[%clk 0:00:23.5]} 45. Kf6 {[%clk 0:00:19.6]}
45... Rf2+ {[%clk 0:00:23.2]} 46. Ke6 {[%clk 0:00:20.1]} 46... Kh4 {[%clk
0:00:23]} 47. Rd3 {[%clk 0:00:20.3]} 47... Re2 {[%clk 0:00:12.3]} 48. Kf5 {[%clk
0:00:18.6]} 48... Rf2+ {[%clk 0:00:10.9]} 49. Kg6 {[%clk 0:00:17.3]} 49... Re2
{[%clk 0:00:10.8]} 50. Rd4 {[%clk 0:00:17.7]} 50... Rg2 {[%clk 0:00:08.9]} 51.
e5+ {[%clk 0:00:15.3]} 51... Kxh3 {[%clk 0:00:08.8]} 52. Re4 {[%clk 0:00:15.7]}
52... g4 {[%clk 0:00:07.2]} 53. e6 {[%clk 0:00:15.9]} 53... Ra2 {[%clk
0:00:07.7]} 54. e7 {[%clk 0:00:15.5]} 54... Ra8 {[%clk 0:00:07.4]} 55. Kg5
{[%clk 0:00:15.3]} 55... g3 {[%clk 0:00:06.4]} 56. Re3 {[%clk 0:00:13.2]} 56...
Kh2 {[%clk 0:00:05.8]} 57. Kg4 {[%clk 0:00:10.2]} 57... g2 {[%clk 0:00:05.8]}
58. Re2 {[%clk 0:00:10.6]} 58... Kh1 {[%clk 0:00:04.5]} 59. e8=Q {[%clk
0:00:09.3]} 59... Rxe8 {[%clk 0:00:03.4]} 60. Rxe8 {[%clk 0:00:08.6]} 60...
g1=Q+ {[%clk 0:00:03.8]} 61. Kf5 {[%clk 0:00:08.8]} 61... Qf1+ {[%clk 0:00:04]}
62. Ke6 {[%clk 0:00:08.8]} 62... Qe2+ {[%clk 0:00:04]} 63. Kf7 {[%clk
0:00:09.3]} 63... Qf3+ {[%clk 0:00:04.6]} 64. Ke7 {[%clk 0:00:09.1]} 64... Qe4+
{[%clk 0:00:04.7]} 65. Kf7 {[%clk 0:00:09.4]} 65... Qf5+ {[%clk 0:00:05.2]} 66.
Ke7 {[%clk 0:00:09.7]} 66... Qc5+ {[%clk 0:00:05.8]} 67. Kf7 {[%clk 0:00:09.9]}
67... Kg2 {[%clk 0:00:06.4]} 68. Re6 {[%clk 0:00:08.6]} 68... Kf3 {[%clk
0:00:06.3]} 69. Rf6+ {[%clk 0:00:08.7]} 69... Ke4 {[%clk 0:00:06.6]} 70. Kg7
{[%clk 0:00:08.8]} 70... Ke5 {[%clk 0:00:06.2]} 71. Rf7 {[%clk 0:00:09.2]} 71...
Qg1+ {[%clk 0:00:05.7]} 72. Kf8 {[%clk 0:00:08.1]} 72... Qc5+ {[%clk 0:00:05.3]}
73. Kg7 {[%clk 0:00:08.3]} 73... Qd4 {[%clk 0:00:05.6]} 74. Rf6 {[%clk
0:00:06.2]} 74... Qg4+ {[%clk 0:00:05.4]} 75. Kf7 {[%clk 0:00:06.4]} 75... Qh5+
{[%clk 0:00:05.2]} 76. Kg7 {[%clk 0:00:06.2]} 76... Qg5+ {[%clk 0:00:05]} 77.
Rg6 {[%clk 0:00:06.6]} 77... Qe7+ {[%clk 0:00:05.6]} 78. Kh6 {[%clk 0:00:06.5]}
78... Kf5 {[%clk 0:00:04.9]} 79. Rg2 {[%clk 0:00:04]} 79... Qd6+ {[%clk
0:00:03.1]} 80. Kh7 {[%clk 0:00:02.7]} 80... Qd7+ {[%clk 0:00:02.2]} 81. Kh8
{[%clk 0:00:01.8]} 81... Qd8+ {[%clk 0:00:02]} 82. Kh7 {[%clk 0:00:01.6]} 82...
Qc7+ {[%clk 0:00:02.1]} 83. Rg7 {[%clk 0:00:01.3]} 83... Qc2 {[%clk 0:00:02]}
84. Kg8 {[%clk 0:00:01.7]} 84... Kf6 {[%clk 0:00:02.2]} 85. Rf7+ {[%clk
0:00:02.2]} 85... Ke6 {[%clk 0:00:02.6]} 86. Kf8 {[%clk 0:00:01]} 86... Qg2
{[%clk 0:00:03]} 87. Rg7 {[%clk 0:00:01]} 1-0